[Event "Manhem Chess Week-GM 2019"]
[Site "Moelnlycke"]
[Date "2019.08.14"]
[Round "6.1"]
[White "Golubka, Petro"]
[Black "Seo, Jung Min"]
[Result "0-1"]
[ECO "B51"]
[WhiteElo "2483"]
[BlackElo "2399"]
[Annotator "ChessBase"]
[PlyCount "118"]
[EventDate "2019.08.10"]
[EventType "tourn"]
[EventCountry "SWE"]
[SourceTitle "playchess.com"]
[Source "ChessBase"]
[SourceQuality "1"]
[TimeControl "40/5400+30:1800+30"]

1. e4 {[%emt 0:02:13]} c5 {[%emt 0:00:00]} 2. Nf3 {[%emt 0:00:23]} Nc6 {[%emt 0:00:59]} 3. Nc3 {[%emt 0:01:16]} d6 {[%emt 0:04:13]} 4. Bb5 {[%emt 0:02:27]} e5 {[%emt 0:05:58]} 5. d3 {[%emt 0:01:41]} Nf6 {[%emt 0:01:26]} 6. O-O {[%emt 0:00:53]} Be7 {[%emt 0:00:09]} 7. Bxc6+ {[%emt 0:08:08]} bxc6 {[%emt 0:00:24]} 8. Nd2 {[%emt 0:01:35]} Be6 {[%emt 0:00:24]} 9. Nc4 {[%emt 0:00:17]} O-O {[%emt 0:06:59]} 10. b3 {[%emt 0:03:11]} Nd7 {[%emt 0:03:26]} 11. Qf3 {[%emt 0:02:22]} Rc8 {[%emt 0:02:50]} 12. Ne3 {[%emt 0:02:59]} g6 {[%emt 0:02:35]} 13. Nf5 {[%emt 0:03:03]} gxf5 {[%emt 0:02:25]} 14. exf5 {[%emt 0:00:13]} Bd5 {[%emt 0:11:33]} 15. Nxd5 {[%emt 0:00:34]} cxd5 {[%emt 0:00:04]} 16. Bh6 {[%emt 0:00:10]} Bf6 {[%emt 0:00:38]} 17. Bxf8 {[%emt 0:00:46]} Qxf8 {[%emt 0:06:40]} 18. Qxd5 {[%emt 0:00:14]} Nb6 {[%emt 0:00:08]} 19. Qb7 {[%emt 0:00:55]} Qe7 {[%emt 0:00:59]} 20. Qf3 {[%emt 0:03:31]} d5 {[%emt 0:03:02]} 21. c4 {[%emt 0:06:20]} Kh8 {[%emt 0:04:09]} 22. Rae1 {[%emt 0:05:39]} Qd7 {[%emt 0:03:03]} 23. Qh5 {[%emt 0:06:12]} Rg8 {[%emt 0:01:27]} 24. Re3 {[%emt 0:07:25]} Rg5 {[%emt 0:02:22]} 25. Qh6 {[%emt 0:00:56]} Qxf5 {[%emt 0:00:04]} 26. Qf8+ {[%emt 0:03:18]} Rg8 {[%emt 0:00:01]} 27. Qxf7 {[%emt 0:00:54]} Qg6 {[%emt 0:01:16]} 28. Qxg6 {[%emt 0:00:09]} hxg6 {[%emt 0:00:21]} 29. h4 {[%emt 0:01:14]} Kg7 {[%emt 0:00:57]} 30. g3 {[%emt 0:00:07]} Rb8 {[%emt 0:08:12]} 31. Kg2 {[%emt 0:01:05]} dxc4 {[%emt 0:00:42]} 32. dxc4 {[%emt 0:03:03]} Rd8 {[%emt 0:00:01]} 33. g4 {[%emt 0:03:58]} Kf7 {[%emt 0:02:23]} 34. g5 {[%emt 0:02:32]} Bg7 {[%emt 0:00:05]} 35. f4 {[%emt 0:00:57]} Rd2+ {[%emt 0:09:16]} 36. Kh3 {[%emt 0:02:18]} Nd7 {[%emt 0:00:10]} 37. f5 {[%emt 0:11:36]} gxf5 {[%emt 0:00:09]} 38. Rxf5+ {[%emt 0:00:04]} Kg6 {[%emt 0:00:21]} 39. Rff3 {[%emt 0:00:38]} Rd4 {[%emt 0:00:56]} 40. a3 {[%emt 0:02:57]} Nf8 {[%emt 0:03:55]} 41. b4 {[%emt 0:31:50]} Ne6 {[%emt 0:37:42]} 42. bxc5 {[%emt 0:00:53]} Nxc5 {[%emt 0:00:26]} 43. Rf2 {[%emt 0:02:30]} a6 {[%emt 0:02:30]} 44. Rb2 {[%emt 0:01:51]} Kh5 {[%emt 0:00:07]} 45. Rb6 {[%emt 0:00:14]} Rxh4+ {[%emt 0:00:31]} 46. Kg2 {[%emt 0:00:09]} Rg4+ {[%emt 0:02:01]} 47. Kf2 {[%emt 0:01:35]} Kxg5 {[%emt 0:01:39]} 48. Rc6 {[%emt 0:00:21]} Rxc4 {[%emt 0:01:01]} 49. Rg3+ {[%emt 0:00:05]} Kf4 {[%emt 0:00:12]} 50. Rxc5 {[%emt 0:00:21]} Rxc5 {[%emt 0:00:05]} 51. Rxg7 {[%emt 0:00:02]} Rc2+ {[%emt 0:00:11]} 52. Ke1 {[%emt 0:00:04]} Ra2 {[%emt 0:00:09]} 53. Rh7 {[%emt 0:00:29]} Rxa3 {[%emt 0:00:08]} 54. Rh4+ {[%emt 0:00:09]} Kg5 {[%emt 0:00:04]} 55. Rc4 {[%emt 0:00:04]} Ra2 {[%emt 0:00:06]} 56. Kf1 {[%emt 0:00:05]} Kf5 {[%emt 0:00:11]} 57. Ke1 {[%emt 0:00:31]} e4 {[%emt 0:00:02]} 58. Kf1 {[%emt 0:00:10]} a5 {[%emt 0:00:04]} 59. Ke1 {[%emt 0:00:04]} a4 {[%emt 0:00:02]} 0-1

[Event "Manhem Chess Week-GM 2019"]
[Site "Moelnlycke"]
[Date "2019.08.14"]
[Round "6.2"]
[White "Urkedal, Frode Olav Olsen"]
[Black "Blomqvist, Erik"]
[Result "0-1"]
[ECO "D13"]
[WhiteElo "2566"]
[BlackElo "2492"]
[Annotator "ChessBase"]
[PlyCount "157"]
[EventDate "2019.08.10"]
[EventType "tourn"]
[EventCountry "SWE"]
[SourceTitle "playchess.com"]
[Source "ChessBase"]
[SourceQuality "1"]
[TimeControl "40/5400+30:1800+30"]

1. d4 {[%emt 0:00:00]} d5 {[%emt 0:00:00]} 2. c4 {[%emt 0:00:00]} c6 {[%emt 0:00:00]} 3. cxd5 {[%emt 0:00:09]} cxd5 {[%emt 0:00:00]} 4. Nc3 {[%emt 0:00:03]} Nf6 {[%emt 0:00:28]} 5. Bf4 {[%emt 0:00:39]} e6 {[%emt 0:01:01]} 6. e3 {[%emt 0:00:35]} Bd6 {[%emt 0:00:33]} 7. Nf3 {[%emt 0:08:04]} Bxf4 {[%emt 0:05:16]} 8. exf4 {[%emt 0:00:06]} O-O {[%emt 0:00:08]} 9. Bd3 {[%emt 0:00:04]} b6 {[%emt 0:01:43]} 10. Qe2 {[%emt 0:00:18]} Nc6 {[%emt 0:16:04]} 11. a3 {[%emt 0:00:44]} Qd6 {[%emt 0:02:56]} 12. g3 {[%emt 0:01:40]} Bb7 {[%emt 0:18:54]} 13. O-O {[%emt 0:03:02]} Rac8 {[%emt 0:00:03]} 14. Rfe1 {[%emt 0:05:43]} g6 {[%emt 0:16:39]} 15. Rad1 {[%emt 0:03:20]} Nh5 {[%emt 0:02:33]} 16. Rc1 {[%emt 0:09:53]} Ng7 {[%emt 0:03:58]} 17. Nb5 {[%emt 0:08:54]} Qe7 {[%emt 0:00:05]} 18. Rc2 {[%emt 0:11:35]} f6 {[%emt 0:04:16]} 19. h4 {[%emt 0:06:05]} Rfe8 {[%emt 0:04:02]} 20. Qf1 {[%emt 0:04:59]} Qf8 {[%emt 0:06:46]} 21. Qh3 {[%emt 0:04:12]} a6 {[%emt 0:01:28]} 22. Nc3 {[%emt 0:00:19]} Nf5 {[%emt 0:00:39]} 23. Bxf5 {[%emt 0:03:58]} exf5 {[%emt 0:00:09]} 24. Rxe8 {[%emt 0:07:01]} Rxe8 {[%emt 0:00:27]} 25. h5 {[%emt 0:00:08]} Na5 {[%emt 0:03:50]} 26. Na4 {[%emt 0:02:54]} Nc4 {[%emt 0:01:51]} 27. hxg6 {[%emt 0:00:37]} hxg6 {[%emt 0:00:02]} 28. b3 {[%emt 0:01:36]} Kg7 {[%emt 0:07:18]} 29. bxc4 {[%emt 0:00:47]} dxc4 {[%emt 0:00:02]} 30. Rc3 {[%emt 0:01:37]} Qd6 {[%emt 0:00:11]} 31. Qf1 {[%emt 0:01:04]} b5 {[%emt 0:03:30]} 32. Nb2 {[%emt 0:05:06]} Bxf3 {[%emt 0:00:26]} 33. Rxf3 {[%emt 0:00:08]} Qxd4 {[%emt 0:00:12]} 34. Qc1 {[%emt 0:03:50]} Re2 {[%emt 0:00:32]} 35. Nxc4 {[%emt 0:06:12]} bxc4 {[%emt 0:00:01]} 36. Qb1 {[%emt 0:00:08]} Qd5 {[%emt 0:00:42]} 37. Rc3 {[%emt 0:00:12]} Rd2 {[%emt 0:00:19]} 38. Rc1 {[%emt 0:00:13]} c3 {[%emt 0:00:58]} 39. Qb4 {[%emt 0:00:06]} c2 {[%emt 0:00:52]} 40. Qe7+ {[%emt 0:00:32]} Qf7 {[%emt 0:00:24]} 41. Qxf7+ {[%emt 0:30:48]} Kxf7 {[%emt 0:30:02]} 42. Kg2 {[%emt 0:00:07]} Ke6 {[%emt 0:00:00]} 43. Kf3 {[%emt 0:00:00]} Rd3+ {[%emt 0:00:00]} 44. Ke2 {[%emt 0:00:00]} Rc3 {[%emt 0:00:00]} 45. Kd2 {[%emt 0:00:00]} Rxa3 {[%emt 0:00:00]} 46. Rxc2 {[%emt 0:00:00]} Kd5 {[%emt 0:00:00]} 47. Rb2 {[%emt 0:00:00]} g5 {[%emt 0:00:00]} 48. Rb6 {[%emt 0:00:00]} Ke4 {[%emt 0:00:00]} 49. fxg5 {[%emt 0:00:00]} fxg5 {[%emt 0:00:00]} 50. Ke2 {[%emt 0:00:00]} Ra2+ {[%emt 0:00:00]} 51. Kf1 {[%emt 0:00:00]} a5 {[%emt 0:00:00]} 52. Kg2 {[%emt 0:00:00]} g4 {[%emt 0:00:00]} 53. Rb5 {[%emt 0:00:00]} a4 {[%emt 0:00:07]} 54. Ra5 {[%emt 0:02:23]} a3 {[%emt 0:00:08]} 55. Kg1 {[%emt 0:01:53]} Kd3 {[%emt 0:02:14]} 56. Kg2 {[%emt 0:00:56]} Ra1 {[%emt 0:02:26]} 57. Rxf5 {[%emt 0:03:44]} Kc3 {[%emt 0:03:16]} 58. Ra5 {[%emt 0:01:56]} Kb4 {[%emt 0:00:42]} 59. Ra8 {[%emt 0:00:32]} Rc1 {[%emt 0:00:36]} 60. Rb8+ {[%emt 0:00:12]} Kc3 {[%emt 0:00:10]} 61. Rc8+ {[%emt 0:00:11]} Kb2 {[%emt 0:00:34]} 62. Rb8+ {[%emt 0:00:09]} Kc2 {[%emt 0:00:41]} 63. Rc8+ {[%emt 0:00:19]} Kb2 {[%emt 0:00:35]} 64. Rb8+ {[%emt 0:00:06]} Ka1 {[%emt 0:00:21]} 65. Rb4 {[%emt 0:01:02]} a2 {[%emt 0:00:03]} 66. Rxg4 {[%emt 0:00:13]} Kb2 {[%emt 0:00:02]} 67. Ra4 {[%emt 0:00:27]} a1=Q {[%emt 0:00:05]} 68. Rxa1 {[%emt 0:00:05]} Rxa1 {[%emt 0:00:03]} 69. Kf3 {[%emt 0:00:20]} Kc3 {[%emt 0:00:40]} 70. Ke4 {[%emt 0:00:18]} Ra4+ {[%emt 0:01:10]} 71. Ke5 {[%emt 0:00:56]} Kd3 {[%emt 0:01:10]} 72. g4 {[%emt 0:00:29]} Ra5+ {[%emt 0:00:35]} 73. Kf4 {[%emt 0:00:42]} Kd4 {[%emt 0:00:35]} 74. g5 {[%emt 0:00:05]} Kd5 {[%emt 0:00:52]} 75. Kf5 {[%emt 0:00:04]} Ra8 {[%emt 0:00:25]} 76. Kf6 {[%emt 0:00:23]} Kd6 {[%emt 0:00:30]} 77. Kf7 {[%emt 0:03:01]} Ke5 {[%emt 0:00:15]} 78. Kg6 {[%emt 0:00:35]} Ra6+ {[%emt 0:00:29]} 79. Kh5 {[%emt 0:00:28]} 0-1

[Event "Manhem Chess Week-GM 2019"]
[Site "Moelnlycke"]
[Date "2019.08.14"]
[Round "6.3"]
[White "Wiedenkeller, Michael"]
[Black "Lindgren, Philip"]
[Result "1/2-1/2"]
[ECO "D02"]
[WhiteElo "2461"]
[BlackElo "2362"]
[Annotator "ChessBase"]
[PlyCount "53"]
[EventDate "2019.08.10"]
[EventType "tourn"]
[EventCountry "SWE"]
[SourceTitle "playchess.com"]
[Source "ChessBase"]
[SourceQuality "1"]
[TimeControl "40/5400+30:1800+30"]

1. Nf3 {[%emt 0:00:29]} d5 {[%emt 0:00:51]} 2. g3 {[%emt 0:00:57]} g6 {[%emt 0:01:06]} 3. Bg2 {[%emt 0:01:00]} Bg7 {[%emt 0:00:14]} 4. d4 {[%emt 0:00:43]} Nh6 {[%emt 0:02:08]} 5. O-O {[%emt 0:03:12]} Nf5 {[%emt 0:00:18]} 6. c3 {[%emt 0:02:35]} Nd7 {[%emt 0:06:03]} 7. e4 {[%emt 0:11:44]} dxe4 {[%emt 0:01:38]} 8. Ng5 {[%emt 0:00:14]} Nd6 {[%emt 0:32:08]} 9. Nxe4 {[%emt 0:09:01]} Nxe4 {[%emt 0:00:21]} 10. Bxe4 {[%emt 0:00:07]} O-O {[%emt 0:00:15]} 11. Bg2 {[%emt 0:26:39]} c6 {[%emt 0:02:46]} 12. Bg5 {[%emt 0:03:55]} h6 {[%emt 0:01:40]} 13. Be3 {[%emt 0:00:13]} e5 {[%emt 0:03:39]} 14. d5 {[%emt 0:01:29]} cxd5 {[%emt 0:01:38]} 15. Qxd5 {[%emt 0:01:47]} Nb6 {[%emt 0:05:38]} 16. Qxd8 {[%emt 0:04:14]} Rxd8 {[%emt 0:00:07]} 17. Na3 {[%emt 0:01:11]} Nd5 {[%emt 0:14:43]} 18. Rad1 {[%emt 0:03:32]} Be6 {[%emt 0:00:25]} 19. Bc1 {[%emt 0:03:47]} Bf8 {[%emt 0:06:09]} 20. c4 {[%emt 0:03:59]} Nb4 {[%emt 0:01:09]} 21. Bxb7 {[%emt 0:01:08]} Rxd1 {[%emt 0:00:48]} 22. Rxd1 {[%emt 0:05:00]} Rb8 {[%emt 0:00:12]} 23. Bd5 {[%emt 0:03:50]} Nxd5 {[%emt 0:13:28]} 24. cxd5 {[%emt 0:00:09]} Rd8 {[%emt 0:00:33]} 25. Nc4 {[%emt 0:04:53]} Rxd5 {[%emt 0:00:23]} 26. Rxd5 {[%emt 0:01:33]} Bxd5 {[%emt 0:00:05]} 27. b3 {[%emt 0:00:35]} 1/2-1/2

[Event "Manhem Chess Week-GM 2019"]
[Site "Moelnlycke"]
[Date "2019.08.14"]
[Round "6.4"]
[White "Hector, Jonny"]
[Black "Ahlander, Bjorn"]
[Result "1/2-1/2"]
[ECO "B43"]
[WhiteElo "2487"]
[BlackElo "2391"]
[Annotator "ChessBase"]
[PlyCount "94"]
[EventDate "2019.08.10"]
[EventType "tourn"]
[EventCountry "SWE"]
[SourceTitle "playchess.com"]
[Source "ChessBase"]
[SourceQuality "1"]
[TimeControl "40/5400+30:1800+30"]

1. e4 {[%emt 0:00:00]} c5 {[%emt 0:00:00]} 2. Nf3 {[%emt 0:00:00]} e6 {[%emt 0:00:00]} 3. d4 {[%emt 0:00:00]} cxd4 {[%emt 0:00:00]} 4. Nxd4 {[%emt 0:00:01]} a6 {[%emt 0:00:30]} 5. Nc3 {[%emt 0:00:32]} Qc7 {[%emt 0:00:10]} 6. Bd3 {[%emt 0:01:19]} Nf6 {[%emt 0:00:23]} 7. f4 {[%emt 0:02:18]} Nc6 {[%emt 0:10:33]} 8. Nxc6 {[%emt 0:02:28]} Qxc6 {[%emt 0:02:56]} 9. O-O {[%emt 0:09:29]} b5 {[%emt 0:01:28]} 10. Qe2 {[%emt 0:04:41]} Bb7 {[%emt 0:00:42]} 11. a3 {[%emt 0:01:16]} Bc5+ {[%emt 0:15:34]} 12. Kh1 {[%emt 0:01:54]} Bd4 {[%emt 0:00:04]} 13. Na2 {[%emt 0:10:13]} Bc5 {[%emt 0:05:43]} 14. b4 {[%emt 0:03:56]} Bd4 {[%emt 0:03:18]} 15. c3 {[%emt 0:00:53]} Ba7 {[%emt 0:00:04]} 16. Re1 {[%emt 0:06:21]} h5 {[%emt 0:07:26]} 17. a4 {[%emt 0:03:28]} Ng4 {[%emt 0:03:14]} 18. Rf1 {[%emt 0:00:41]} Qb6 {[%emt 0:04:36]} 19. a5 {[%emt 0:09:48]} Qd8 {[%emt 0:11:58]} 20. Qe1 {[%emt 0:09:05]} Rc8 {[%emt 0:03:53]} 21. Bb2 {[%emt 0:02:53]} d5 {[%emt 0:04:33]} 22. e5 {[%emt 0:01:42]} Ne3 {[%emt 0:02:06]} 23. Rf3 {[%emt 0:06:18]} d4 {[%emt 0:00:38]} 24. cxd4 {[%emt 0:00:31]} Bxf3 {[%emt 0:04:41]} 25. Qxe3 {[%emt 0:00:11]} Bb7 {[%emt 0:00:07]} 26. f5 {[%emt 0:07:02]} Qd5 {[%emt 0:04:21]} 27. Qd2 {[%emt 0:01:30]} exf5 {[%emt 0:03:00]} 28. Nc3 {[%emt 0:02:46]} Qe6 {[%emt 0:05:46]} 29. Rf1 {[%emt 0:01:56]} g6 {[%emt 0:00:33]} 30. d5 {[%emt 0:01:05]} Bxd5 {[%emt 0:00:59]} 31. Bxb5+ {[%emt 0:01:42]} axb5 {[%emt 0:01:12]} 32. Nxd5 {[%emt 0:00:06]} Rc4 {[%emt 0:02:08]} 33. Nf4 {[%emt 0:01:37]} Rxf4 {[%emt 0:01:50]} 34. Qxf4 {[%emt 0:00:46]} O-O {[%emt 0:00:03]} 35. Bd4 {[%emt 0:02:01]} Bb8 {[%emt 0:01:52]} 36. Qe3 {[%emt 0:03:23]} Rd8 {[%emt 0:01:00]} 37. Ra1 {[%emt 0:03:32]} f4 {[%emt 0:00:14]} 38. Qg1 {[%emt 0:00:46]} f3 {[%emt 0:00:29]} 39. gxf3 {[%emt 0:00:35]} Qd5 {[%emt 0:00:03]} 40. Bc5 {[%emt 0:00:32]} Qxf3+ {[%emt 0:00:21]} 41. Qg2 {[%emt 0:30:15]} Rd1+ {[%emt 0:03:32]} 42. Rxd1 {[%emt 0:00:00]} Qxd1+ {[%emt 0:00:09]} 43. Bg1 {[%emt 0:00:00]} Bxe5 {[%emt 0:02:21]} 44. Qa8+ {[%emt 0:00:00]} Kh7 {[%emt 0:02:03]} 45. Qb7 {[%emt 0:00:00]} Kg8 {[%emt 0:01:55]} 46. Qa8+ {[%emt 0:00:00]} Kh7 {[%emt 0:00:09]} 47. Qb7 {[%emt 0:00:00]} Kg8 {[%emt 0:00:12]} 1/2-1/2

[Event "Manhem Chess Week-GM 2019"]
[Site "Moelnlycke"]
[Date "2019.08.14"]
[Round "6.5"]
[White "Haubro, Martin"]
[Black "Vypkhaniuk, Ihor"]
[Result "0-1"]
[ECO "B38"]
[WhiteElo "2356"]
[BlackElo "2402"]
[Annotator "ChessBase"]
[PlyCount "92"]
[EventDate "2019.08.10"]
[EventType "tourn"]
[EventCountry "SWE"]
[SourceTitle "playchess.com"]
[Source "ChessBase"]
[SourceQuality "1"]
[TimeControl "40/5400+30:1800+30"]

1. e4 {[%emt 0:00:00]} c5 {[%emt 0:00:04]} 2. Nf3 {[%emt 0:00:00]} Nc6 {[%emt 0:00:09]} 3. d4 {[%emt 0:00:00]} cxd4 {[%emt 0:00:08]} 4. Nxd4 {[%emt 0:00:00]} g6 {[%emt 0:00:42]} 5. c4 {[%emt 0:00:19]} Nf6 {[%emt 0:00:29]} 6. Nc3 {[%emt 0:00:04]} d6 {[%emt 0:00:14]} 7. Be2 {[%emt 0:01:25]} Bg7 {[%emt 0:00:14]} 8. Be3 {[%emt 0:00:05]} O-O {[%emt 0:00:08]} 9. O-O {[%emt 0:03:12]} Nxd4 {[%emt 0:00:26]} 10. Bxd4 {[%emt 0:00:12]} Bd7 {[%emt 0:00:04]} 11. f3 {[%emt 0:10:47]} a5 {[%emt 0:03:31]} 12. b3 {[%emt 0:21:22]} Bc6 {[%emt 0:00:51]} 13. Qd2 {[%emt 0:01:53]} Nd7 {[%emt 0:01:10]} 14. Be3 {[%emt 0:00:05]} Nc5 {[%emt 0:00:15]} 15. Rab1 {[%emt 0:00:09]} e6 {[%emt 0:01:48]} 16. Bd4 {[%emt 0:16:15]} Bxd4+ {[%emt 0:07:59]} 17. Qxd4 {[%emt 0:00:05]} e5 {[%emt 0:00:38]} 18. Qd2 {[%emt 0:08:02]} Ne6 {[%emt 0:10:12]} 19. Rfd1 {[%emt 0:01:58]} Nd4 {[%emt 0:06:33]} 20. Bf1 {[%emt 0:00:12]} Qb6 {[%emt 0:04:04]} 21. Kh1 {[%emt 0:01:35]} Rfd8 {[%emt 0:02:07]} 22. Ne2 {[%emt 0:00:20]} Ne6 {[%emt 0:01:12]} 23. Nc3 {[%emt 0:05:46]} h5 {[%emt 0:29:10]} 24. a4 {[%emt 0:02:55]} Nd4 {[%emt 0:15:05]} 25. Ne2 {[%emt 0:01:08]} Ne6 {[%emt 0:02:36]} 26. Nc3 {[%emt 0:00:08]} Nd4 {[%emt 0:04:17]} 27. Nb5 {[%emt 0:01:01]} Bxb5 {[%emt 0:00:18]} 28. cxb5 {[%emt 0:00:04]} d5 {[%emt 0:01:49]} 29. exd5 {[%emt 0:00:19]} Rxd5 {[%emt 0:00:18]} 30. Bc4 {[%emt 0:00:05]} Rd6 {[%emt 0:01:13]} 31. Qe3 {[%emt 0:02:03]} Re8 {[%emt 0:00:38]} 32. Rd3 {[%emt 0:00:41]} Qc7 {[%emt 0:05:41]} 33. Qe4 {[%emt 0:03:44]} Kg7 {[%emt 0:00:56]} 34. Rbd1 {[%emt 0:01:29]} Nf5 {[%emt 0:00:58]} 35. Rxd6 {[%emt 0:05:39]} Nxd6 {[%emt 0:00:02]} 36. Qd5 {[%emt 0:00:08]} Re6 {[%emt 0:01:01]} 37. h3 {[%emt 0:00:46]} h4 {[%emt 0:00:43]} 38. Re1 {[%emt 0:01:25]} Nf5 {[%emt 0:00:33]} 39. Qd2 {[%emt 0:09:44]} Rd6 {[%emt 0:00:22]} 40. Qc3 {[%emt 0:01:30]} Rd4 {[%emt 0:00:39]} 41. Kg1 {[%emt 0:31:44]} Qc5 {[%emt 0:04:27]} 42. Kh2 {[%emt 0:00:00]} b6 {[%emt 0:01:46]} 43. Re4 {[%emt 0:00:00]} Rd1 {[%emt 0:09:14]} 44. Re1 {[%emt 0:00:00]} Rxe1 {[%emt 0:01:14]} 45. Qxe1 {[%emt 0:00:00]} Ng3 {[%emt 0:00:22]} 46. Qd2 {[%emt 0:00:00]} Qxc4 {[%emt 0:03:19]} 0-1

[Event "Manhem Chess Week-GM 2019"]
[Site "Moelnlycke"]
[Date "2019.08.14"]
[Round "7.5"]
[White "Ahlander, Bjorn"]
[Black "Haubro, Martin"]
[Result "1/2-1/2"]
[ECO "D94"]
[WhiteElo "2391"]
[BlackElo "2356"]
[Annotator "NA"]
[PlyCount "73"]
[EventDate "2019.08.10"]
[EventType "tourn"]
[EventCountry "SWE"]
[SourceTitle "playchess.com"]
[Source "ChessBase"]
[SourceQuality "1"]
[TimeControl "40/5400+30:1800+30"]

1. d4 {[%emt 0:00:00]} Nf6 {[%emt 0:00:00]} 2. c4 {[%emt 0:00:00]} c5 {[%emt 0:00:00]} 3. e3 {[%emt 0:00:01]} cxd4 {[%emt 0:00:00]} 4. exd4 {[%emt 0:00:04]} d5 {[%emt 0:00:05]} 5. Nc3 {[%emt 0:01:03]} g6 {[%emt 0:05:55]} 6. Nf3 {[%emt 0:02:51]} Bg7 {[%emt 0:00:56]} 7. Be2 {[%emt 0:00:03]} O-O {[%emt 0:01:13]} 8. O-O {[%emt 0:00:05]} Nc6 {[%emt 0:04:12]} 9. h3 {[%emt 0:00:13]} Bf5 {[%emt 0:04:10]} 10. a3 {[%emt 0:20:07]} dxc4 {[%emt 0:02:06]} 11. Bxc4 {[%emt 0:00:06]} Ne4 {[%emt 0:02:30]} 12. Be3 {[%emt 0:03:30]} Rc8 {[%emt 0:01:49]} 13. Ba2 {[%emt 0:07:31]} Nxc3 {[%emt 0:07:32]} 14. bxc3 {[%emt 0:00:25]} Na5 {[%emt 0:00:07]} 15. Rc1 {[%emt 0:06:46]} Nc4 {[%emt 0:02:35]} 16. Qe2 {[%emt 0:14:22]} Be6 {[%emt 0:05:51]} 17. Bg5 {[%emt 0:06:30]} Re8 {[%emt 0:03:15]} 18. Rfe1 {[%emt 0:11:41]} Qa5 {[%emt 0:02:40]} 19. Bxc4 {[%emt 0:02:18]} Bxc4 {[%emt 0:02:55]} 20. Qd2 {[%emt 0:02:56]} Bd5 {[%emt 0:02:20]} 21. c4 {[%emt 0:00:53]} Qxd2 {[%emt 0:02:20]} 22. Nxd2 {[%emt 0:00:03]} f6 {[%emt 0:13:24]} 23. cxd5 {[%emt 0:01:03]} fxg5 {[%emt 0:01:11]} 24. Rxc8 {[%emt 0:01:01]} Rxc8 {[%emt 0:00:04]} 25. Rxe7 {[%emt 0:00:44]} Bxd4 {[%emt 0:04:27]} 26. d6 {[%emt 0:02:56]} Kf8 {[%emt 0:06:08]} 27. Nf3 {[%emt 0:06:45]} Rc1+ {[%emt 0:02:26]} 28. Kh2 {[%emt 0:00:06]} Bc5 {[%emt 0:00:03]} 29. Rxb7 {[%emt 0:04:35]} Bxd6+ {[%emt 0:00:10]} 30. g3 {[%emt 0:00:03]} Rc2 {[%emt 0:15:03]} 31. Nxg5 {[%emt 0:00:50]} Rxf2+ {[%emt 0:01:03]} 32. Kg1 {[%emt 0:00:05]} Ra2 {[%emt 0:01:39]} 33. Nxh7+ {[%emt 0:01:13]} Kg8 {[%emt 0:00:05]} 34. Nf6+ {[%emt 0:00:10]} Kf8 {[%emt 0:00:03]} 35. Nh7+ {[%emt 0:00:06]} Kg8 {[%emt 0:00:04]} 36. Nf6+ {[%emt 0:00:06]} Kf8 {[%emt 0:00:03]} 37. Nh7+ {[%emt 0:05:39]} 1/2-1/2